lending/lending_fUSD_20240512
["ID","MTS","AMOUNT","RATE_DAILY","PERIOD"]
[326906562,1715554244353,-4147.67,0.00012328,2]
[326906563,1715554244364,-4147.67,0.00012328,2]
[326906564,1715554244373,-4147.67,0.00012328,2]
[326906565,1715554244383,-4147.67,0.00012328,2]
[326906566,1715554244394,-4147.67,0.00012328,2]
[326906567,1715554244405,-4147.67,0.00012328,2]
[326906568,1715554244415,-2881.57,0.00012328,2]
[326906569,1715554244425,-4147.67,0.00012328,2]
[326906570,1715554244434,-2881.57,0.00012328,2]
[326906571,1715554244443,-4147.67,0.00012328,2]
[326906572,1715554244453,-2881.57,0.00012328,2]
[326906573,1715554244461,-4147.67,0.00012328,2]
[326906574,1715554244471,-2881.57,0.00012328,2]
[326906575,1715554244480,-4147.67,0.00012328,2]
[326906576,1715554244489,-4147.67,0.00012328,2]
[326906577,1715554244499,-2881.57,0.00012328,2]
[326906578,1715554244510,-4147.67,0.00012328,2]
[326906579,1715554244519,-2881.57,0.00012328,2]
[326906580,1715554244529,-4147.67,0.00012328,2]
[326906581,1715554244538,-2881.57,0.00012328,2]
[326906582,1715554244550,-4147.67,0.00012328,2]
[326906583,1715554244559,-2881.57,0.00012328,2]
[326906584,1715554244568,-4147.84020166,0.00012328,2]
[326906585,1715554244578,-2881.57,0.00012328,2]
[326906586,1715554244587,-2881.57,0.00012328,2]
[326906587,1715554244597,-2881.57,0.00012328,2]
[326906588,1715554244606,-2881.57,0.00012328,2]
[326906589,1715554244615,-2881.57,0.00012328,2]
[326906590,1715554244624,-2881.57,0.00012328,2]
[326906591,1715554244634,-2881.57,0.00012328,2]
[326906592,1715554244643,-151.0,0.00012328,2]
[326906593,1715554244653,-2881.57,0.00012328,2]
[326906594,1715554244664,-151.0,0.00012328,2]
[326906595,1715554244674,-2881.57,0.00012328,2]
[326906596,1715554244683,-151.0,0.00012328,2]
[326906597,1715554244693,-2881.57,0.00012328,2]
[326906598,1715554244702,-151.0,0.00012328,2]
[326906599,1715554244712,-2881.57,0.00012328,2]
[326906600,1715554244722,-500.0,0.00012328,2]
[326906601,1715554244731,-151.0,0.00012328,2]
[326906602,1715554244741,-2881.57,0.00012328,2]
[326906603,1715554244751,-500.0,0.00012328,2]
[326906604,1715554244760,-8799.77,0.00012328,2]
[326906605,1715554244770,-2881.57,0.00012328,2]
[326906606,1715554244779,-500.0,0.00012328,2]
[326906607,1715554244789,-8799.77,0.00012328,2]
[326906608,1715554244799,-2881.57,0.00012328,2]
[326906609,1715554244808,-500.0,0.00012328,2]
[326906610,1715554244818,-8799.77,0.00012328,2]
[326906611,1715554244828,-2881.57,0.00012328,2]
[326906612,1715554244837,-151.0,0.00012328,2]
[326906613,1715554244847,-8799.77,0.00012328,2]
[326906614,1715554244857,-2881.61621455,0.00012328,2]
[326906615,1715554244867,-500.0,0.00012328,2]
[326906616,1715554244876,-8799.77,0.00012328,2]
[326906617,1715554244885,-151.0,0.00012328,2]
[326906618,1715554244895,-500.0,0.00012328,2]
[326906619,1715554244904,-8799.77,0.00012328,2]
[326906620,1715554244913,-500.0,0.00012328,2]
[326906621,1715554244923,-8799.77,0.00012328,2]
[326906622,1715554244932,-500.0,0.00012328,2]
[326906623,1715554244941,-8799.77,0.00012328,2]
[326906624,1715554244951,-635.51841272,0.00012328,2]
[326906625,1715554244960,-8799.77,0.00012328,2]
[326906626,1715554244969,-8799.77,0.00012328,2]
[326906627,1715554244979,-151.0,0.00012328,2]
[326906628,1715554244988,-8799.77,0.00012328,2]
[326906629,1715554244999,-151.0,0.00012328,2]
[326906630,1715554245008,-8799.77,0.00012328,2]
[326906631,1715554245019,-1774.39,0.00012328,2]
[326906632,1715554245028,-8799.77,0.00012328,2]
[326906633,1715554245038,-151.0,0.00012328,2]
[326906634,1715554245047,-1774.39,0.00012328,2]
[326906635,1715554245057,-8799.77,0.00012328,2]
[326906636,1715554245243,-1774.39,0.00012328,2]
[326906637,1715554245254,-151.0,0.00012328,2]
[326906638,1715554245263,-1774.39,0.00012328,2]
[326906639,1715554245273,-151.0,0.00012328,2]
[326906640,1715554245282,-8799.77,0.00012328,2]
[326906641,1715554245292,-241.96502614,0.00012328,2]
[326906642,1715554245301,-1774.39,0.00012328,2]
[326906643,1715554245310,-151.0,0.00012328,2]
[326906644,1715554245319,-1774.39,0.00012328,2]
[326906645,1715554245329,-8799.77,0.00012328,2]
[326906646,1715554245338,-8799.77,0.00012328,2]
[326906647,1715554245347,-1774.39,0.00012328,2]
[326906648,1715554245357,-8799.77,0.00012328,2]
[326906649,1715554245366,-1774.39,0.00012328,2]
[326906650,1715554245375,-151.0,0.00012328,2]
[326906651,1715554245384,-8799.77,0.00012328,2]
[326906652,1715554245394,-1774.39,0.00012328,2]
[326906653,1715554245404,-2968.79,0.00012328,2]
[326906654,1715554245413,-8799.77,0.00012328,2]
[326906655,1715554245423,-2968.79,0.00012328,2]
[326906656,1715554245432,-8799.77,0.00012328,2]
[326906657,1715554245442,-1774.39,0.00012328,2]
[326906658,1715554245452,-2968.79,0.00012328,2]
[326906659,1715554245463,-8799.77,0.00012328,2]
[326906660,1715554245474,-1774.39,0.00012328,2]
[326906661,1715554245485,-2968.79,0.00012328,2]
[326906662,1715554245495,-8799.77,0.00012328,2]
[326906663,1715554245509,-2968.79,0.00012328,2]
[326906664,1715554245520,-1774.39,0.00012328,2]
[326906665,1715554245530,-8799.97330531,0.00012328,2]
[326906666,1715554245539,-443.26578735,0.00012328,2]
[326906667,1715554245600,-303.94329984,0.00012328,2]
[326906668,1715554245611,-1735.92,0.00012328,2]
[326906669,1715554245622,-485.66091281,0.00012328,2]
[326906670,1715554245631,-1774.39,0.00012328,2]
[326906671,1715554245642,-915.77073287,0.00012328,2]
[326906672,1715554245653,-264.4956,0.00012328,2]
[326906673,1715554245665,-1788.52366713,0.00012328,2]
[326906674,1715554245674,-1774.39,0.00012328,2]
[326906675,1715554245683,-2968.79,0.00012328,2]
[326906676,1715554245693,-1774.39,0.00012328,2]
[326906677,1715554245702,-2968.79,0.00012328,2]
[326906678,1715554245712,-1774.39,0.00012328,2]
[326906679,1715554245722,-1774.39,0.00012328,2]
[326906680,1715554245732,-2968.79,0.00012328,2]
[326906681,1715554245742,-1774.39,0.00012328,2]
[326906682,1715554245753,-2968.79,0.00012328,2]
[326906683,1715554245763,-1774.39,0.00012328,2]
[326906684,1715554245774,-2968.79,0.00012328,2]
[326906685,1715554245784,-1774.39,0.00012328,2]
[326906686,1715554245794,-2968.79,0.00012328,2]
[326906687,1715554245803,-1774.39,0.00012328,2]
[326906688,1715554245812,-2968.79,0.00012328,2]
[326906689,1715554245822,-1774.39,0.00012328,2]
[326906690,1715554245831,-2968.79,0.00012328,2]
[326906691,1715554245841,-1774.39,0.00012328,2]
[326906692,1715554245850,-2968.79,0.00012328,2]
[326906693,1715554245859,-500.0,0.00012328,2]
[326906694,1715554245869,-1774.57484733,0.00012328,2]
[326906695,1715554245880,-1773.89148554,0.00012328,2]
[326906696,1715554245893,-1194.89851446,0.00012328,2]
[326906697,1715554245902,-171.28,0.00012328,2]
[326906699,1715554245913,-2968.79,0.00012328,2]
[326906701,1715554245922,-2968.79,0.00012328,2]
[326906703,1715554245933,-2968.79,0.00012328,2]
[326906705,1715554245943,-2968.79,0.00012328,2]
[326906706,1715554245953,-3827.65,0.00012328,2]
[326906708,1715554245962,-2968.79,0.00012328,2]
[326906710,1715554245972,-500.2,0.00012328,2]
[326906712,1715554245981,-1792.07,0.00012328,2]
[326906713,1715554245991,-3827.65,0.00012328,2]
[326906714,1715554246001,-500.2,0.00012328,2]
[326906715,1715554246011,-2968.79,0.00012328,2]
[326906716,1715554246020,-1792.07,0.00012328,2]
[326906717,1715554246033,-3827.65,0.00012328,2]
[326906718,1715554246043,-500.2,0.00012328,2]
[326906719,1715554246053,-1792.07,0.00012328,2]
[326906720,1715554246064,-3827.65,0.00012328,2]
[326906721,1715554246073,-500.2,0.00012328,2]
[326906722,1715554246083,-2969.00107299,0.00012328,2]
[326906724,1715554246093,-500.2,0.00012328,2]
[326906726,1715554246101,-1792.07,0.00012328,2]
[326906727,1715554246111,-500.2,0.00012328,2]
[326906729,1715554246120,-3827.65,0.00012328,2]
[326906731,1715554246129,-1792.07,0.00012328,2]
[326906733,1715554246138,-3827.65,0.00012328,2]
[326906736,1715554246148,-500.2,0.00012328,2]
[326906738,1715554246158,-1792.07,0.00012328,2]
[326906739,1715554246167,-3827.65,0.00012328,2]
[326906740,1715554246176,-500.2,0.00012328,2]
[326906741,1715554246186,-1792.07,0.00012328,2]
[326906742,1715554246195,-3827.65,0.00012328,2]
[326906743,1715554246204,-500.2,0.00012328,2]
[326906744,1715554246214,-1792.07,0.00012328,2]
[326906745,1715554246224,-3827.65,0.00012328,2]
[326906746,1715554246233,-500.2,0.00012328,2]
[326906747,1715554246244,-1792.07,0.00012328,2]
[326906748,1715554246254,-3827.65,0.00012328,2]
[326906749,1715554246263,-500.2,0.00012328,2]
[326906750,1715554246273,-1792.07,0.00012328,2]
[326906751,1715554246283,-500.2,0.00012328,2]
[326906752,1715554246293,-1792.07,0.00012328,2]
[326906753,1715554246303,-3827.65,0.00012328,2]
[326906754,1715554246313,-1792.07,0.00012328,2]
[326906755,1715554246323,-35618.35,0.00012328,2]
[326906756,1715554246333,-500.2,0.00012328,2]
[326906757,1715554246343,-3827.65,0.00012328,2]
[326906758,1715554246353,-1792.07,0.00012328,2]
[326906759,1715554246363,-35618.35,0.00012328,2]
[326906760,1715554246370,-500.2,0.00012328,2]
[326906761,1715554246379,-1792.07,0.00012328,2]
[326906762,1715554246387,-3827.65,0.00012328,2]
[326906763,1715554246395,-35618.35,0.00012328,2]
[326906764,1715554246403,-500.2,0.00012328,2]
[326906765,1715554246410,-1792.07,0.00012328,2]
[326906766,1715554246418,-3827.65,0.00012328,2]
[326906767,1715554246427,-12803.92638458,0.00012328,2]
[326906768,1715554246443,-460.63094984,0.00012328,2]
[326906769,1715554246454,-476.2010242,0.00012328,2]
[326906770,1715554246466,-322.87653265,0.00012328,2]
[326906771,1715554246478,-281.70783134,0.00012328,2]
[326906772,1715554246575,-150.0,0.00012314,2]
[326906773,1715554246586,-507.18108047,0.00012328,2]
[326906774,1715554246602,-159.81891953,0.00012328,2]
[326906775,1715554246611,-18931.0770231,0.00012328,2]
[326906776,1715554246624,-2341.93025429,0.00012328,2]
[326906777,1715554246633,-500.2,0.00012328,2]
[326906778,1715554246642,-952.93681221,0.00012328,2]
[326906779,1715554246667,-370.74,0.00012328,2]
[326906780,1715554246678,-468.39318779,0.00012328,2]
[326906781,1715554246688,-500.2,0.00012328,2]
[326906782,1715554246698,-3827.65,0.00012328,2]
[326906783,1715554246708,-28958.10714099,0.00012328,2]
[326906784,1715554246726,-381.63516757,0.00012328,2]
[326906785,1715554246737,-526.72600002,0.00012328,2]
[326906786,1715554246901,-259.47964987,0.00012327,2]
[326906787,1715554246911,-709.18790051,0.00012328,2]
[326906788,1715554246922,-3023.59909949,0.00012328,2]
[326906789,1715554246932,-5751.88169142,0.00012328,2]
[326906790,1715554246941,-1792.07,0.00012328,2]
[326906791,1715554246951,-500.2,0.00012328,2]
[326906792,1715554246960,-35618.35,0.00012328,2]
[326906793,1715554246970,-2933.21201709,0.00012328,2]
[326906803,1715554352015,191.18253782,0.00010593,2]
[326906814,1715554946569,500.0,0.0001,2]
[326906910,1715555432492,-638.49582452,0.00010434,2]
[326906911,1715555432505,-49.50417548,0.00010434,2]
[326906912,1715555432515,-150.0,0.00010561,2]
[326906913,1715555432526,-50.49582452,0.00010562,2]
[326906914,1715555432541,-6514.60272418,0.00010562,2]
[326906915,1715555432553,-5678.0114513,0.00010562,2]
[326906916,1715555432563,-1021.13,0.00010573,2]
[326906917,1715555432573,-250.0,0.0001058,2]
[326906918,1715555432583,-264.58,0.00010592,2]
[326906919,1715555432594,-186.35,0.00010594,2]
[326906920,1715555432607,-266.98,0.00010599,2]
[326906921,1715555432618,-2653.90192616,0.000106,2]
[326906922,1715555432628,-286.01,0.00010649,2]
[326906923,1715555432638,-501.07,0.00010729,2]
[326906924,1715555432648,-501.07,0.00010758,2]
[326906925,1715555432658,-501.07,0.00010788,2]
[326906926,1715555432668,-501.07,0.00010817,2]
[326906927,1715555432678,-501.07,0.00010847,2]
[326906928,1715555432688,-200.0,0.00010858,2]
[326906929,1715555432698,-73.08463823,0.00010858,4]
[326906930,1715555432711,-523.28591813,0.00010858,4]
[326906933,1715555432723,-667.39206051,0.00010858,4]
[326906935,1715555432735,-2203.97488,0.00010858,4]
[326906937,1715555432747,-853.15156266,0.00010858,4]
[326906940,1715555432759,-741.8811006,0.00010858,4]
[326906941,1715555432771,-4812.51983987,0.00010858,4]
[326906942,1715555432780,-999.99,0.00010858,2]
[326906943,1715555432790,-299.99,0.00010858,2]
[326906944,1715555432800,-501.07,0.00010876,2]
[326906945,1715555432810,-501.07,0.00010905,2]
[326906946,1715555432820,-312.0,0.00010916,2]
[326906947,1715555432829,-501.07,0.00010935,2]
[326906948,1715555432840,-169.44,0.00010953,2]
[326906949,1715555432852,-10000.0,0.00010959,2]
[326906950,1715555432862,-1739.57,0.00010959,2]
[326906951,1715555432871,-501.07,0.00010964,2]
[326906952,1715555432881,-501.07,0.00010994,2]
[326906953,1715555432891,-501.07,0.00011023,2]
[326906954,1715555432901,-185.17,0.00011026,2]
[326906955,1715555432910,-501.07,0.00011053,2]
[326906956,1715555432920,-501.07,0.00011082,2]
[326906958,1715555432931,-175.72,0.00011108,2]
[326906960,1715555432942,-501.07,0.00011111,2]
[326906962,1715555432952,-501.07,0.00011141,2]
[326906965,1715555432962,-501.07,0.0001117,2]
[326906967,1715555432971,-501.07,0.000112,2]
[326906969,1715555432981,-501.07,0.00011229,2]
[326906971,1715555432991,-501.07,0.00011258,2]
[326906973,1715555433001,-501.07,0.00011288,2]
[326906975,1715555433011,-2558.85,0.00011438,2]
[326906977,1715555433020,-150.99,0.00011438,2]
[326906979,1715555433030,-210.0,0.00011617,2]
[326906981,1715555433040,-688.0,0.00011738,2]
[326906983,1715555433050,-5000.0,0.00012,2]
[326906985,1715555433060,-168.99,0.00012033,2]
[326906987,1715555433070,-19618.93418788,0.00012078,2]
[326906989,1715555433080,-3156.0,0.00012081,2]
[326906991,1715555433090,-215.0,0.00012081,2]
[326906992,1715555433101,-444.0,0.00012081,2]
[326906994,1715555433110,-1126.129,0.00012081,2]
[326906997,1715555433121,-5911.0,0.00012081,2]
[326906999,1715555433130,-1463.0,0.00012081,2]
[326907001,1715555433141,-288.0,0.00012081,2]
[326907003,1715555433151,-5749.0,0.00012081,2]
[326907005,1715555433161,-37831.0,0.00012081,2]
[326907007,1715555433170,-1095.34,0.00012087,2]
[326907009,1715555433181,-3689.6462,0.00012214,2]
[326907011,1715555433190,-7500.0,0.00012228,2]
[326907013,1715555433200,-182.11206201,0.00012228,2]
[326907015,1715555433210,-176.22158104,0.00012228,2]
[326907017,1715555433220,-18045.13992128,0.00012228,2]
[326907019,1715555433230,-200.0,0.00012229,2]
[326907021,1715555433240,-1000.0,0.00012229,2]
[326907023,1715555433250,-200.0,0.00012229,2]
[326907025,1715555433260,-3623.773,0.00012238,2]
[326907027,1715555433270,-312.0,0.00012281,2]
[326907029,1715555433280,-18045.13992122,0.00012287,2]
[326907031,1715555433290,-973.0,0.00012314,2]
[326907033,1715555433300,-1398.0,0.00012314,2]
[326907035,1715555433310,-2157.0,0.00012314,2]
[326907036,1715555433320,-543.0,0.00012314,2]
[326907037,1715555433329,-1789.0,0.00012314,2]
[326907038,1715555433339,-1225.0,0.00012314,2]
[326907039,1715555433350,-1261.0,0.00012314,2]
[326907040,1715555433360,-612.0,0.00012314,2]
[326907041,1715555433369,-438.0,0.00012314,2]
[326907042,1715555433379,-422.0,0.00012314,2]
[326907043,1715555433388,-809.0,0.00012314,2]
[326907044,1715555433398,-1593.126,0.00012314,2]
[326907045,1715555433408,-2433.0,0.00012314,2]
[326907046,1715555433418,-427.63737053,0.0001232,2]
[326907047,1715555433428,-212.03749855,0.0001232,2]
[326907048,1715555433438,-5025.7075651,0.00012321,2]
[326907049,1715555433447,-2107.15621,0.00012321,2]
[326907050,1715555433458,-3886.0725453,0.00012321,2]
[326907051,1715555433468,-2724.0505002,0.00012321,2]
[326907052,1715555433478,-962.6366203,0.00012321,2]
[326907053,1715555433490,-838.36011824,0.00012326,2]
[326907054,1715555433500,-155.0,0.00012326,2]
[326907055,1715555433510,-35326.16178743,0.00012326,2]
[326907056,1715555433521,-155.76704409,0.00012326,2]
[326907057,1715555433532,-260.4209643,0.00012326,2]
[326907058,1715555433542,-162.48665574,0.00012326,2]
[326907059,1715555433552,-281.0,0.00012326,2]
[326907060,1715555433563,-3740.527,0.00012326,2]
[326907061,1715555433574,-1379.42241151,0.00012327,2]
[326907062,1715555433584,-7508.65350991,0.00012327,2]
[326907063,1715555433594,-155.99954567,0.00012327,2]
[326907064,1715555433605,-597.0,0.00012328,2]
[326907065,1715555433616,-445.33117263,0.00012328,2]
[326907066,1715555433626,-200.0,0.00012328,2]
[326907067,1715555433636,-499.70242659,0.00012328,2]
[326907068,1715555433646,-151.0,0.00012328,2]
[326907069,1715555433656,-151.0,0.00012328,2]
[326907070,1715555433666,-500.0,0.00012328,2]
[326907071,1715555433676,-400.0,0.00012328,2]
[326907072,1715555433686,-151.0,0.00012328,2]
[326907073,1715555433695,-151.0,0.00012328,2]
[326907074,1715555433705,-151.0,0.00012328,2]
[326907075,1715555433715,-151.0,0.00012328,2]
[326907076,1715555433725,-151.0,0.00012328,2]
[326907077,1715555433734,-315.17698828,0.00012328,2]
[326907078,1715555433744,-1997.13,0.00012328,2]
[326907079,1715555433756,-1997.13,0.00012328,2]
[326907080,1715555433768,-1997.13,0.00012328,2]
[326907081,1715555433778,-1997.13,0.00012328,2]
[326907082,1715555433787,-1997.13,0.00012328,2]
[326907083,1715555433798,-1997.13,0.00012328,2]
[326907084,1715555433809,-1997.13,0.00012328,2]
[326907085,1715555433820,-1997.13,0.00012328,2]
[326907086,1715555433830,-1997.13,0.00012328,2]
[326907087,1715555433840,-1313.15,0.00012328,2]
[326907088,1715555433850,-1313.15,0.00012328,2]
[326907089,1715555433860,-1313.15,0.00012328,2]
[326907090,1715555433869,-1313.15,0.00012328,2]
[326907091,1715555433879,-1313.15,0.00012328,2]
[326907092,1715555433888,-1313.15,0.00012328,2]
[326907093,1715555433898,-1313.15,0.00012328,2]
[326907094,1715555433909,-1313.15,0.00012328,2]
[326907095,1715555433918,-1313.15,0.00012328,2]
[326907096,1715555433928,-1370.29,0.00012328,2]
[326907097,1715555433942,-1370.29,0.00012328,2]
[326907098,1715555433952,-1370.29,0.00012328,2]
[326907099,1715555433962,-1370.29,0.00012328,2]
[326907100,1715555433972,-1370.29,0.00012328,2]
[326907101,1715555433982,-1370.29,0.00012328,2]
[326907102,1715555433992,-1370.29,0.00012328,2]
[326907103,1715555434001,-1370.29,0.00012328,2]
[326907104,1715555434011,-1370.29,0.00012328,2]
[326907105,1715555434021,-522.69,0.00012328,2]
[326907106,1715555434032,-522.69,0.00012328,2]
[326907107,1715555434042,-522.69,0.00012328,2]
[326907108,1715555434051,-522.69,0.00012328,2]
[326907109,1715555434061,-522.69,0.00012328,2]
[326907110,1715555434071,-522.69,0.00012328,2]
[326907111,1715555434081,-522.69,0.00012328,2]
[326907112,1715555434091,-743.8,0.00012328,2]
[326907113,1715555434103,-743.8,0.00012328,2]
[326907114,1715555434112,-743.8,0.00012328,2]
[326907115,1715555434122,-743.8,0.00012328,2]
[326907116,1715555434132,-743.8,0.00012328,2]
[326907117,1715555434141,-743.8,0.00012328,2]
[326907118,1715555434151,-743.8,0.00012328,2]
[326907119,1715555434160,-743.8,0.00012328,2]
[326907120,1715555434170,-743.8,0.00012328,2]
[326907121,1715555434180,-3000.0,0.00012328,2]
[326907122,1715555434189,-5699.62,0.00012328,2]
[326907123,1715555434199,-5699.62,0.00012328,2]
[326907124,1715555434209,-5699.62,0.00012328,2]
[326907125,1715555434218,-5699.62,0.00012328,2]
[326907126,1715555434228,-5699.62,0.00012328,2]
[326907127,1715555434238,-5699.62,0.00012328,2]
[326907128,1715555434247,-5699.62,0.00012328,2]
[326907129,1715555434257,-5699.62,0.00012328,2]
[326907130,1715555434268,-5699.62,0.00012328,2]
[326907131,1715555434278,-1850.43,0.00012328,2]
[326907132,1715555434287,-1850.43,0.00012328,2]
[326907133,1715555434297,-1850.43,0.00012328,2]
[326907134,1715555434307,-1850.43,0.00012328,2]
[326907135,1715555434317,-1850.43,0.00012328,2]
[326907136,1715555434327,-1850.43,0.00012328,2]
[326907137,1715555434337,-1850.43,0.00012328,2]
[326907138,1715555434347,-4288.85,0.00012328,2]
[326907139,1715555434359,-3213.30178027,0.00012328,2]
[326907140,1715555434374,-1075.54821973,0.00012328,2]
[326907141,1715555434384,-4238.45188027,0.00012328,2]
[326907142,1715555434397,-50.39811973,0.00012328,2]
[326907143,1715555434407,-4288.85,0.00012328,2]
[326907144,1715555434417,-4288.85,0.00012328,2]
[326907145,1715555434427,-4288.85,0.00012328,2]
[326907146,1715555434437,-4288.85,0.00012328,2]
[326907147,1715555434448,-2243.86,0.00012328,2]
[326907148,1715555434458,-2243.86,0.00012328,2]
[326907149,1715555434468,-2243.86,0.00012328,2]
[326907150,1715555434480,-12214.82,0.00012328,2]
[326907151,1715555434490,-2243.86,0.00012328,2]
[326907152,1715555434500,-8026.95186027,0.00012328,2]
[326907153,1715555434513,-4187.86813973,0.00012328,2]
[326907154,1715555434524,-2243.86,0.00012328,2]
[326907155,1715555434534,-8635.27184027,0.00012328,2]
[326907156,1715555434546,-704.92261432,0.00012328,2]
[326907157,1715555434558,-2874.62554541,0.00012328,2]
[326907158,1715555434569,-2243.86,0.00012328,2]
[326907159,1715555434579,-9970.95942641,0.00012328,2]
[326907160,1715555434591,-447.53187127,0.00012328,2]
[326907161,1715555434606,-1796.32870232,0.00012328,2]
[326907162,1715555434617,-994.72809851,0.00012328,2]
[326907163,1715555434645,-1231.98607209,0.00012328,2]
[326907164,1715555434658,-17.1458294,0.00012328,2]
[326907165,1715555434669,-7238.37750274,0.00012328,2]
[326907166,1715555434681,-4976.44249726,0.00012328,2]
[326907167,1715555434692,-2243.86,0.00012328,2]
[326907168,1715555434702,-989.6703151,0.00012328,2]
[326907169,1715555434715,-8902.88752742,0.00012328,2]
[326907170,1715555434728,-982.21119649,0.00012328,2]
[326907171,1715555434740,-520.6831,0.00012328,2]
[326907172,1715555434753,-434.00509907,0.00012328,2]
[326907173,1715555434765,-385.36276192,0.00012328,2]
[326907174,1715555434776,-141.82436281,0.00012328,2]
[326907175,1715555434789,-2102.03563719,0.00012328,2]
[326907176,1715555434801,-5450.15237545,0.00012328,2]
[326907177,1715555438344,-1059.0,0.00012081,2]
[326907178,1715555438355,-1050.83826179,0.00012328,2]
[326907179,1715555438367,-1002.65148404,0.00012328,2]
[326907180,1715555438379,-605.98118334,0.00012328,2]
[326907181,1715555438390,-4105.19669538,0.00012328,2]
[326907182,1715555438400,-12987.41018873,0.00012328,2]
[326907183,1715555438411,-10387.12981127,0.00012328,2]
[326907184,1715555438421,-23374.54,0.00012328,2]
[326907185,1715555438431,-23374.54,0.00012328,2]
[326907186,1715555438441,-23374.54,0.00012328,2]
[326907187,1715555438450,-5033.87423044,0.00012328,2]
[326907188,1715555438462,-255.53745705,0.00012328,2]
[326907189,1715555438473,-1773.46874722,0.00012328,2]
[326907190,1715555438602,-310.0345829,0.00012328,2]
[326907193,1715555438615,-3223.7629553,0.00012328,2]
[326907195,1715555438627,-12777.86202709,0.00012328,2]
[326907197,1715555438636,-23374.54,0.00012328,2]
[326907199,1715555438646,-23374.54,0.00012328,2]
[326907201,1715555438655,-500.0,0.00012328,2]
[326907203,1715555438664,-500.0,0.00012328,2]
[326907205,1715555438673,-500.0,0.00012328,2]
[326907207,1715555438682,-500.0,0.00012328,2]
[326907209,1715555438691,-500.0,0.00012328,2]
[326907211,1715555438700,-2473.05797292,0.00012328,2]
[326907213,1715555438712,-9890.78103409,0.00012328,2]
[326907216,1715555438723,-509.16789362,0.00012328,2]
[326907218,1715555438735,-474.33309937,0.00012328,2]
[326907220,1715555438744,-311.27444041,0.00012328,2]
[326907222,1715555438755,-3511.99297866,0.00012328,2]
[326907224,1715555438766,-9524.07258093,0.00012328,2]
[326907226,1715555438776,-13347.34,0.00012328,2]
[326907228,1715555438785,-13347.34,0.00012328,2]
[326907230,1715555438795,-13347.34,0.00012328,2]
[326907232,1715555438804,-13347.34,0.00012328,2]
[326907234,1715555438813,-500.0,0.00012328,2]
[326907236,1715555438822,-13347.34,0.00012328,2]
[326907238,1715555438831,-500.0,0.00012328,2]
[326907239,1715555438841,-500.0,0.00012328,2]
[326907240,1715555438850,-1119.59,0.00012328,2]
[326907241,1715555438860,-500.0,0.00012328,2]
[326907242,1715555438870,-500.0,0.00012328,2]
[326907243,1715555438880,-1119.59,0.00012328,2]
[326907244,1715555438890,-1119.59,0.00012328,2]
[326907246,1715555438900,-1119.59,0.00012328,2]
[326907248,1715555438912,-1119.59,0.00012328,2]
[326907250,1715555438922,-500.0,0.00012328,2]
[326907252,1715555438934,-500.0,0.00012328,2]
[326907253,1715555438944,-500.0,0.00012328,2]
[326907255,1715555438953,-500.0,0.00012328,2]
[326907257,1715555438962,-500.0,0.00012328,2]
[326907259,1715555438971,-3360.31,0.00012328,2]
[326907261,1715555438981,-3360.31,0.00012328,2]
[326907263,1715555438990,-3360.31,0.00012328,2]
[326907265,1715555438999,-3360.31,0.00012328,2]
[326907267,1715555439009,-3360.31,0.00012328,2]
[326907269,1715555439019,-3360.31,0.00012328,2]
[326907270,1715555439029,-3360.31,0.00012328,2]
[326907271,1715555439039,-500.0,0.00012328,2]
[326907273,1715555439048,-500.0,0.00012328,2]
[326907274,1715555439057,-500.0,0.00012328,2]